Cogmind - Beta 15 @@@ ROGUE MODE // 2025.09.23 @ 04:28:38 Player: Kotyk77 Result: Destroyed by B-75 Beast with Heavy Machine Gun Performance ------------- Evolutions (3) 1500 Regions Visited (9) 1800 Robots Destroyed (55) 275 Value Destroyed (1136) 1136 Prototype IDs (27) 540 Alien Tech Used (0) 0 Bonus (258) 258 TOTAL SCORE: 5509 Bonus ------- Aligned with FarCom 300 Friendly Fire -42 Cogmind --------- Core Integrity 0/700 Matter 264/300 Energy 100/100 System Corruption 17% Temperature Cool (12) Movement Core (1350) Ox26 Location -7/Lower Caves Parts ------- > --- POWER (1) -------- (None) > --- PROPULSION (5) --- (None) > --- UTILITY (5) ------ Huge Storage Unit Advanced Visual Processing Unit Improved Signal Interpreter > --- WEAPON (2) ------- (None) > --- INVENTORY (25) --- Heavy Treads Improved Titanium Leg Humpback ECM Suite Improved Medium Armor Plating Advanced Hacking Suite Sensor Drone Bay (19/20) Field Laser Battle Rifle High-powered Shotgun Precision Assault Rifle Precision Assault Rifle Improved Grenade Launcher Remote Datajack Heavy Mace Katana Peak State ------------ > --- POWER ------------ Antimatter Reactor > --- PROPULSION ------- Medium Treads Heavy Treads Heavy Treads > --- UTILITY ---------- Huge Storage Unit Machine Analyzer Advanced Visual Processing Unit Improved Signal Interpreter Hacking Suite > --- WEAPON ----------- Latent Energy Streamer Heavy Mace > --- INVENTORY -------- Micro Nuclear Core Antimatter Reactor Antimatter Reactor Medium Treads Heavy Treads Improved Titanium Leg Humpback ECM Suite Improved Propulsion Shielding Advanced Hacking Suite Sensor Drone Bay High-powered Shotgun Precision Assault Rifle Precision Assault Rifle Rocket Launcher Improved Grenade Launcher Remote Datajack Katana [Rating: 69] Favorites ----------- Power Light Ion Engine Engine Light Ion Engine Power Core Micro Nuclear Core Reactor Antimatter Reactor Propulsion Aluminum Leg Treads Medium Treads Leg Aluminum Leg Wheel Wheel Utility Large Storage Unit Device ECM Suite Storage Large Storage Unit Processor Advanced Visual Processing Unit Hackware Hacking Suite Protection Improved Propulsion Shielding Weapon Heavy Mace Energy Gun Small Laser Energy Cannon Latent Energy Streamer Ballistic Gun Precision Assault Rifle Ballistic Cannon Light Cannon Launcher Improved Grenade Launcher Special Weapon Mining Laser Impact Weapon Heavy Mace Slashing Weapon Katana Build | -11 -10 -10 -10 -9 -8 -7 -7 -7 -7 ------- Run | Yrd Mat Min Exi Min Mat Fac Was Fac Low Slots Evolved 6 | . . . . . 4 2 . . . Power . | . . . . . . . . . . Propulsion 3 | . . . . . 2 1 . . . Utility 3 | . . . . . 2 1 . . . Weapon . | . . . . . . . . . . Parts Attached 64 | 7 6 8 2 . 20 1 10 5 5 Power 9 | 1 . 1 . . 2 . 3 . 2 Engine 5 | 1 . 1 . . 2 . 1 . . Core 1 | . . . . . . . . . 1 Reactor 3 | . . . . . . . 2 . 1 Propulsion 20 | 2 3 3 . . 6 1 5 . . Treads 8 | . . . . . 2 1 5 . . Leg 8 | . 3 2 . . 3 . . . . Wheel 4 | 2 . 1 . . 1 . . . . Hover . | . . . . . . . . . . Flight . | . . . . . . . . . . Utility 17 | 2 1 1 1 . 5 . 1 4 2 Device 5 | 1 . 1 . . 2 . . 1 . Storage 5 | 1 1 . . . 1 . 1 1 . Processor 4 | . . . 1 . 2 . . 1 . Hackware 1 | . . . . . . . . 1 . Protection 2 | . . . . . . . . . 2 Artifact . | . . . . . . . . . . Weapon 18 | 2 2 3 1 . 7 . 1 1 1 Energy Gun 1 | 1 . . . . . . . . . Energy Cannon 1 | . . . 1 . . . . . . Ballistic Gun 7 | 1 1 . . . 3 . . 1 1 Ballistic Cannon 1 | . . 1 . . . . . . . Launcher 3 | . . 1 . . 1 . 1 . . Special Weapon 2 | . 1 1 . . . . . . . Impact Weapon 2 | . . . . . 2 . . . . Slashing Weapon 1 | . . . . . 1 . . . . Piercing Weapon . | . . . . . . . . . . Special Melee Weapon . | . . . . . . . . . . Unidentified Prototypes 4 | . . . . . 3 . 1 . . Parts Lost 26 | . 2 7 . . 4 . . 3 10 Power 5 | . . 1 . . 1 . . . 3 Propulsion 9 | . 1 3 . . 1 . . 2 2 Utility 5 | . 1 . . . . . . 1 3 Weapon 7 | . . 3 . . 2 . . . 2 Highest Loss Streak 6 | . 1 6 . . 4 . . 3 4 To Critical Strikes . | . . . . . . . . . . Average Backups 12 | 3 7 8 10 13 13 13 14 18 18 Power 2 | . 1 2 3 3 1 1 2 3 2 Propulsion 2 | 1 4 2 2 2 1 1 2 3 2 Utility 3 | . . 1 2 4 4 5 4 5 5 Weapon 3 | . 2 1 2 3 4 5 5 5 7 Tool/Special . | . . . . . . . . . . Unused Backups 17 | . . . . 1 6 . 1 2 7 Power 3 | . . . . . 3 . . . . Propulsion 3 | . . . . . . . . 1 2 Utility 6 | . . . . . 1 . 1 1 3 Weapon 4 | . . . . 1 2 . . . 1 Tool/Special 1 | . . . . . . . . . 1 Average Slot Usage (%) 83 | . 98 87 75 71 89 92 89 82 66 Engine 8 | . 14 13 14 14 8 7 . . . Reactor 1 | . . . . . . . 6 7 5 Treads 8 | . . . . . 8 15 26 22 12 Leg 17 | . 12 27 28 28 20 23 . . . Wheel 1 | . 15 . . . 3 . . . . Device 5 | . 13 14 9 . 1 . 7 4 . Storage 10 | . 14 14 14 14 9 7 7 7 7 Processor 13 | . . . 4 14 22 23 23 22 15 Energy Cannon 1 | . . . 4 . . . . 4 . Ballistic Gun 3 | . 22 3 . . 5 7 . 2 . Ballistic Cannon 1 | . . 6 . . . . . . . Launcher 1 | . . 2 . . 1 . 6 . 5 Special Weapon 1 | . 5 4 . . . . . . . Impact Weapon 3 | . . . . . 5 7 7 6 5 Peak Build Rating 69 | 9 9 9 16 9 32 35 65 69 51 Average Rating 26 | 5 8 7 9 8 26 34 53 63 43 On Entrance 21 | . 9 6 6 8 9 31 35 65 48 Naked Turns . | . . . . . . . . . . Heaviest Build 111 | 14 30 32 35 23 50 32 71 111 110 Greatest Support 168 | 20 20 20 20 20 56 56 168 168 98 Greatest Overweight (x) 31 | . 2 2 1 1 8 . . 1 31 Average Overweight (x) . | . . 1 1 1 . . . . 1 Largest Inventory Capacity 25 | 8 15 15 15 15 15 15 20 25 25 Average Capacity 16 | 7 11 15 15 15 15 15 16 22 25 Most Carried 22 | 6 9 10 14 15 15 15 20 21 22 Average Carried 13 | 3 7 8 11 14 14 14 16 20 20 Final Capacity 25 | 8 15 15 15 15 15 15 20 25 25 Final Carried 20 | 6 9 10 14 15 15 15 20 20 18 Class Distribution -------------------- 64% | Mutant 35% | Assassin Dominant Class ---------------- Mutant | -10/Materials Mutant | -10/Mines Mutant | -10/Exiles Mutant | -9/Mines Assassin | -8/Materials Assassin | -7/Factory Assassin | -7/Waste Assassin | -7/Factory Mutant | -7/Lower Caves Resources | -11 -10 -10 -10 -9 -8 -7 -7 -7 -7 ----------- Run | Yrd Mat Min Exi Min Mat Fac Was Fac Low Matter Collected 1658 | 295 130 192 . 32 412 78 271 166 82 Remotely . | . . . . . . . . . . Salvage Created 1230 | 81 145 65 . . 311 78 56 454 40 Parts 61 | 6 13 7 . . 13 1 1 17 3 Haulers Intercepted . | . . . . . . . . . . Recyclers Shooed . | . . . . . . . . . . Parts Field Recycled . | . . . . . . . . . . Retrieved Matter . | . . . . . . . . . . Parts Self-Destructed 4 | . . . . . . . . . 4 Prevented . | . . . . . . . . . . Kills | -11 -10 -10 -10 -9 -8 -7 -7 -7 -7 ------- Run | Yrd Mat Min Exi Min Mat Fac Was Fac Low Combat Hostiles Destroyed 33 | . 6 8 . . 10 . . 5 4 Melee 4 | . . . . . 1 . . 3 . Guns 9 | . 5 2 . . 2 . . . . Cannons 3 | . 1 2 . . . . . . . AOE 16 | . . 4 . . 6 . . 2 4 Classes Destroyed 10 | 2 2 . . . 2 1 . 3 . Worker 4 | . . . . . . 1 . 3 . Builder 9 | . . . . . 2 . . 7 . Tunneler 3 | 2 . . . . 1 . . . . Recycler 1 | 1 . . . . . . . . . Mechanic 1 | . . . . . . . . 1 . Watcher 4 | . . . . . 2 2 . . . Swarmer 18 | . 3 8 . . 3 . . . 4 Grunt 13 | . 3 . . . 7 . . 3 . Sentry 1 | . . . . . . . . 1 . Programmer 1 | . . . . . . . . 1 . Best Kill Streak 10 | 3 4 3 . . 9 2 . 10 4 Combat Bots Only 7 | . 4 3 . . 7 . . 2 4 Max Kills in Single Turn 2 | 1 1 2 . . 2 1 . 2 2 Gunslinging . | . . . . . . . . . . Exploded 2 | . . 2 . . 2 . . 2 2 Melee 1 | . . . . . 1 . . 1 . Uniques/NPCs Destroyed . | . . . . . . . . . . Combat | -11 -10 -10 -10 -9 -8 -7 -7 -7 -7 -------- Run | Yrd Mat Min Exi Min Mat Fac Was Fac Low Hostile Shots Fired 410 | . 40 55 . 3 64 . . 136 112 Missed 125 | . 8 12 . 2 20 . . 46 37 Hits 285 | . 32 43 . 1 44 . . 90 75 Projectile 285 | . 32 43 . 1 44 . . 90 75 Critical Strikes 7 | . . . . . 3 . . . 4 Damage Taken 4562 | . 468 403 . 10 842 . . 1155 1684 Core 900 | . 45 55 . . 90 . . 94 616 Absorbed by Shields . | . . . . . . . . . . Redirected to Shielding 73 | . . . . . . . . . 73 Core Remaining (%) 81 | 100 . . . 60 83 . . . . Volleys Fired 108 | 9 31 22 . . 24 4 . 10 8 Largest 2 | 2 2 2 . . 1 1 . 1 1 Hottest 120 | 60 120 120 . . 30 28 . 60 60 Shots Fired 142 | 18 48 29 . . 24 4 . 11 8 Gun 92 | 18 35 13 . . 12 4 . 10 . Cannon 12 | . . 8 . . . . . 1 3 Launcher 24 | . . 7 . . 12 . . . 5 Special 14 | . 13 1 . . . . . . . Kinetic 91 | 9 35 21 . . 12 4 . 10 . Thermal 23 | 9 13 1 . . . . . . . Explosive 24 | . . 7 . . 12 . . . 5 Electromagnetic 4 | . . . . . . . . 1 3 Robot Hit Streak 7 | 3 7 5 . . 6 1 . 3 4 Robot Miss Streak 7 | 3 7 3 . . 2 2 . 5 1 Penetration Max . | . . . . . . . . . . Secondary Targets . | . . . . . . . . . . Shots Hit Robots 104 | 12 20 12 . . 15 4 1 38 2 Core Hits 59 | 4 9 8 . . 20 1 . 12 5 Critical Kills 2 | . . . . . 1 . . 1 . Critical Parts Destroyed 7 | . . . . . 1 2 1 3 . Critical Strikes 9 | . . . . . 2 2 1 4 . Destroy 1 | . . . . . 1 . . . . Smash 8 | . . . . . 1 2 1 4 . Melee Attacks 74 | . . . . . 14 16 1 42 1 Impact 68 | . . . . . 14 16 1 36 1 Slashing 6 | . . . . . . . . 6 . Piercing . | . . . . . . . . . . Sneak Attacks 11 | . . . . . 2 1 . 8 . Combat Hostiles . | . . . . . . . . . . Follow-up Attacks . | . . . . . . . . . . Damage Inflicted 4957 | 158 293 543 . 3 1437 231 42 1875 375 Guns 866 | 158 257 105 . . 198 20 . 128 . Cannons 71 | . . 55 . . . . . 5 11 Explosions 1875 | . . 361 . . 915 . . 235 364 Melee 2084 | . . . . . 324 211 42 1507 . Ramming 35 | . 10 22 . 3 . . . . . Kinetic 867 | 104 257 160 . . 198 20 . 128 . Thermal 80 | 54 26 . . . . . . . . Explosive 1622 | . . 361 . . 915 . . . 346 Electromagnetic 269 | . . . . . . . . 240 29 Impact 1869 | . . . . . 324 211 42 1292 . Slashing 215 | . . . . . . . . 215 . Piercing . | . . . . . . . . . . Highest Corruption 17 | . 14 14 14 14 . . . 14 17 Average Corruption 12 | . 8 14 14 14 . . . 3 14 Corruption Purged . | . . . . . . . . . . Corruption Blocked . | . . . . . . . . . . Effects 172 | . 14 62 28 31 . . . 10 27 Message Errors 38 | . 3 12 8 5 . . . 2 8 Matter Fused 27 | . 2 14 5 2 . . . 3 1 Heat Flow Errors 22 | . 1 10 3 5 . . . . 3 Energy Discharges 30 | . 3 10 5 7 . . . 1 4 Parts Rejected 4 | . 1 . . . . . . 2 1 Parts Fused 1 | . . . . 1 . . . . . Data Loss (minor) 25 | . 2 5 5 7 . . . 1 5 Data Loss (major) 12 | . 1 4 2 1 . . . . 4 Misfires 5 | . . 4 . . . . . 1 . Alerts 6 | . . 2 . 3 . . . . 1 Weapon Failures 2 | . 1 1 . . . . . . . Overload Shots . | . . . . . . . . . . Overflow Damage 1048 | . . 14 . . 137 189 42 625 41 Projectiles . | . . . . . . . . . . Explosions 70 | . . 14 . . 15 . . . 41 Melee 978 | . . . . . 122 189 42 625 . Knockbacks 8 | . . . . . 2 1 1 4 . Impact 8 | . . . . . 2 1 1 4 . Kinetic . | . . . . . . . . . . Secondary . | . . . . . . . . . . Self-Inflicted Damage 183 | . 5 55 . . 61 . . . 62 Shots 6 | . . 2 . . 2 . . . 2 Rammed 1 | . 1 . . . . . . . . Targets Rammed 7 | . 1 3 . 3 . . . . . Kicked 6 | . . 3 . 3 . . . . . Crushed . | . . . . . . . . . . Highest Temperature 293 | . 275 278 168 245 35 . . 19 293 Average Temperature 92 | . 38 120 83 100 14 . . 8 132 Received Heat Transfer 1240 | . 66 . . 6 378 . . 264 526 Effects 3 | . . 3 . . . . . . . Interference 3 | . . 3 . . . . . . . Siege Activations . | . . . . . . . . . . Martial Activations . | . . . . . . . . . . Shielding Activations . | . . . . . . . . . . Robots Disrupted . | . . . . . . . . . . Combat Hostiles . | . . . . . . . . . . Robots Corrupted 11 | . . . . . 3 1 1 6 . Combat Hostiles 1 | . . . . . 1 . . . . Parts Fried 22 | . . . . . 5 3 . 14 . Impact Corruptions 31 | . . . . . 5 4 1 21 . Robots Melted . | . . . . . . . . . . Combat Hostiles . | . . . . . . . . . . Parts Melted 1 | . . . . . . . . 1 . Heat Transferred 175 | 125 50 . . . . . . . . Parts Sabotaged . | . . . . . . . . . . Parts Stolen . | . . . . . . . . . . Parts Stripped . | . . . . . . . . . . Power Chain Reactions . | . . . . . . . . . . Latent Energy Used 185 | . . . . . . . . 106 79 LE Corruption 5 | . . . . . . . . 2 3 Alert | -11 -10 -10 -10 -9 -8 -7 -7 -7 -7 ------- Run | Yrd Mat Min Exi Min Mat Fac Was Fac Low Maximum Alert Level . | . . . . . . . . . . Low Security (%) 100 | 100 100 100 . 100 100 100 100 100 . Level 1 . | . . . . . . . . . . Level 2 . | . . . . . . . . . . Level 3 . | . . . . . . . . . . Level 4 . | . . . . . . . . . . Level 5 . | . . . . . . . . . . High Security . | . . . . . . . . . . Max Security . | . . . . . . . . . . Peak Influence 153 | 10 99 89 . . 153 12 . 74 . Initial 10 | . . . . . . 10 . . . Average 16 | 1 35 13 . . 38 1 . 17 . Influence Increases 1150 | 15 192 245 . . 359 30 . 219 90 Destroy 0b10 Robot/C 660 | . 120 160 . . 200 . . 100 80 Destroy 0b10 Robot/NC 110 | 15 . . . . 25 15 . 55 . Destroy Leader 128 | . 20 30 . . 34 4 . 30 10 Successful Hack 28 | . 20 . . . 4 . . 4 . Disable Machine 15 | . . . . . . . . 15 . Destroy Structure 149 | . 2 55 . . 66 11 . 15 . Partial Spotted 30 | . 30 . . . . . . . . Lose Combat Pursuer 30 | . . . . . 30 . . . . Influence Decreases 1150 | 15 192 245 . . 335 54 . 192 117 Entered New Map 25 | . . . . . . 14 . . 11 Time Decay 1014 | 15 182 214 . . 295 40 . 162 106 Lost Part 111 | . 10 31 . . 40 . . 30 . Squads Dispatched 7 | . 1 . . . 1 1 . 4 . Investigation 3 | . 1 . . . . . . 2 . Extermination 2 | . . . . . . 1 . 1 . Reinforcement 2 | . . . . . 1 . . 1 . Assault . | . . . . . . . . . . Garrison . | . . . . . . . . . . Intercept . | . . . . . . . . . . Searches Triggered . | . . . . . . . . . . Construction Impeded 2 | . . . . . 1 . . 1 . Haulers Reinforced . | . . . . . . . . . . Active Scanning Responses . | . . . . . . . . . . Cargo Convoy Interrupts . | . . . . . . . . . . Stealth | -11 -10 -10 -10 -9 -8 -7 -7 -7 -7 --------- Run | Yrd Mat Min Exi Min Mat Fac Was Fac Low Distress Signals 4 | . 2 1 . . 1 . . . . Communications Jammed . | . . . . . . . . . . Distress Signals . | . . . . . . . . . . Times Spotted 64 | . 11 12 . 3 21 2 . 10 5 Peak Tracking Total 4 | . 4 4 . 3 4 1 . 3 2 Tactical Retreats 5 | . . 2 . . 1 . . 2 . Traps | -11 -10 -10 -10 -9 -8 -7 -7 -7 -7 ------- Run | Yrd Mat Min Exi Min Mat Fac Was Fac Low Traps Triggered 6 | . 4 . . . . 1 . 1 . Indirectly . | . . . . . . . . . . Trap Hack Attempts . | . . . . . . . . . . Triggered . | . . . . . . . . . . Disarmed . | . . . . . . . . . . Reprogrammed . | . . . . . . . . . . Reused . | . . . . . . . . . . Traps Extracted . | . . . . . . . . . . Installed . | . . . . . . . . . . Triggered . | . . . . . . . . . . Machines | -11 -10 -10 -10 -9 -8 -7 -7 -7 -7 ---------- Run | Yrd Mat Min Exi Min Mat Fac Was Fac Low Machines Disabled 1 | . . . . . . . . 1 . Max in Single Turn 1 | . . . . . . . . 1 . Machines Repaired . | . . . . . . . . . . Machines Dismantled . | . . . . . . . . . . Machines Sabotaged . | . . . . . . . . . . Overloaded Fab Kills . | . . . . . . . . . . Hacking | -11 -10 -10 -10 -9 -8 -7 -7 -7 -7 --------- Run | Yrd Mat Min Exi Min Mat Fac Was Fac Low Machines Accessed 14 | . 5 1 1 . 4 . . 3 . Terminals 9 | . 5 . . . 3 . . 1 . Fabricators . | . . . . . . . . . . Repair Stations 1 | . . . . . . . . 1 . Recycling Units . | . . . . . . . . . . Scanalyzers 2 | . . . . . 1 . . 1 . Garrison Access . | . . . . . . . . . . Total Hacks 42 | . 19 1 1 . 9 . . 12 . Successful 18 | . 8 1 1 . 4 . . 4 . Failed 23 | . 10 . . . 5 . . 8 . Catastrophic 4 | . 3 . . . 1 . . . . Database Lockouts 1 | . 1 . . . . . . . . Manual 27 | . 16 . 1 . 8 . . 2 . Terminals 31 | . 19 . . . 8 . . 4 . Fabricators . | . . . . . . . . . . Repair Stations 2 | . . . . . . . . 2 . Recycling Units . | . . . . . . . . . . Scanalyzers 7 | . . . . . 1 . . 6 . Garrison Access . | . . . . . . . . . . Terminal Hacks 11 | . 6 1 1 . 2 . . 1 . Record 2 | . 1 . . . . . . 1 . Robot Analysis 4 | . 3 . . . 1 . . . . Open Door 1 | . . 1 . . . . . . . Branch Access Points 1 | . 1 . . . . . . . . Terminal Index 2 | . 1 . . . 1 . . . . Proto ID Catalog 1 | . . . 1 . . . . . . Fabricator Hacks . | . . . . . . . . . . Repair Station Hacks . | . . . . . . . . . . Recycling Unit Hacks . | . . . . . . . . . . Scanalyzer 2 | . . . . . . . . 2 . Insert Component 1 | . . . . . . . . 1 . Analyze 1 | . . . . . . . . 1 . Garrison Access Hacks . | . . . . . . . . . . Unauthorized Hacks 5 | . 2 . . . 2 . . 1 . Terminals 5 | . 2 . . . 2 . . 1 . Botnet 5 | . 2 . . . 2 . . 1 . Fabricators . | . . . . . . . . . . Repair Stations . | . . . . . . . . . . Recycling Units . | . . . . . . . . . . Scanalyzers . | . . . . . . . . . . Garrison Access . | . . . . . . . . . . Data Cores Recovered . | . . . . . . . . . . Used . | . . . . . . . . . . Hacking Detections 9 | . 4 . . . 2 . . 3 . Full Trace Events 4 | . 2 . . . . . . 2 . Feedback Events . | . . . . . . . . . . Feedback Blocked . | . . . . . . . . . . Robot Schematics Acquired . | . . . . . . . . . . Robots Built . | . . . . . . . . . . Authchips . | . . . . . . . . . . Time . | . . . . . . . . . . Total Robot Build Rating . | . . . . . . . . . . Part Schematics Acquired . | . . . . . . . . . . Parts Built . | . . . . . . . . . . Authchips . | . . . . . . . . . . Time . | . . . . . . . . . . Total Part Build Rating . | . . . . . . . . . . Parts Repaired . | . . . . . . . . . . Time . | . . . . . . . . . . Parts Recycled . | . . . . . . . . . . Recycled Matter . | . . . . . . . . . . Retrieved Matter . | . . . . . . . . . . Retrieved Components . | . . . . . . . . . . Parts Scanalyzed 1 | . . . . . . . . 1 . Part Schematics Acquired . | . . . . . . . . . . Parts Damaged . | . . . . . . . . . . Bothacking | -11 -10 -10 -10 -9 -8 -7 -7 -7 -7 ------------ Run | Yrd Mat Min Exi Min Mat Fac Was Fac Low Used RIF Installer . | . . . . . . . . . . Robots Hacked . | . . . . . . . . . . Non-combat . | . . . . . . . . . . Combat . | . . . . . . . . . . Robot Hacks Applied . | . . . . . . . . . . Relay Couplers Released . | . . . . . . . . . . Fabnet Peak Effective % . | . . . . . . . . . . Robots Rewired . | . . . . . . . . . . Allies Hacked . | . . . . . . . . . . Hacks Repelled . | . . . . . . . . . . Allies | -11 -10 -10 -10 -9 -8 -7 -7 -7 -7 -------- Run | Yrd Mat Min Exi Min Mat Fac Was Fac Low Total Allies . | . . . . . . . . . . Largest Group . | . . . . . . . . . . Highest-Rated Group . | . . . . . . . . . . Highest-Rated Ally . | . . . . . . . . . . Total Orders . | . . . . . . . . . . Ally Attacks . | . . . . . . . . . . Total Damage . | . . . . . . . . . . Kills . | . . . . . . . . . . Allies Corrupted . | . . . . . . . . . . Allies Melted . | . . . . . . . . . . Intel | -11 -10 -10 -10 -9 -8 -7 -7 -7 -7 ------- Run | Yrd Mat Min Exi Min Mat Fac Was Fac Low Active Infowar (turns) 6272 | 10 475 1432 574 . 1088 552 576 947 618 Optics 3779 | . . . . . 1086 552 576 947 618 Sensors 2 | . . . . . 2 . . . . Terrain 485 | 10 475 . . . . . . . . Machine Analysis 2606 | . . . . . 604 552 576 874 . ECM 3148 | . . 1432 574 . . . 576 566 . Robot Analysis Total 4 | . 3 . . . 1 . . . . Derelict Logs Recovered 3 | . . 1 . 2 . . . . . Drone Launches 1 | . . . . . 1 . . . . Drone Recoveries . | . . . . . . . . . . Exploration | -11 -10 -10 -10 -9 -8 -7 -7 -7 -7 ------------- Run | Yrd Mat Min Exi Min Mat Fac Was Fac Low Turns Passed 7481 | 87 505 1432 820 799 1145 552 576 947 618 Spaces Moved 3738 | 55 240 714 429 410 595 293 335 460 207 Core 8 | 1 . . . . 1 . . . 6 Treads 1370 | . . . . . 81 293 335 460 201 Legs 2052 | . 121 712 429 410 380 . . . . Wheels 308 | 54 119 2 . . 133 . . . . Hover . | . . . . . . . . . . Flight . | . . . . . . . . . . Fastest Speed 50 | 50 80 95 190 190 105 160 160 160 160 Average Speed 176 | 79 155 189 190 190 152 160 160 163 281 Slowest Speed 1600 | 80 260 260 190 190 450 160 160 240 1600 Overloaded Moves . | . . . . . . . . . . Propulsion Burnouts . | . . . . . . . . . . Robots Hopped . | . . . . . . . . . . Potential Cave-ins 9 | . 8 . . . 1 . . . . Cave-ins Triggered 2 | . 1 . . . . . . 1 . Exploration Rate (%) 44 | 4 38 98 74 76 29 8 82 11 20 Regions Visited 9 Branch Regions 4 Pre-discovered Areas 3 | . . 1 . 2 . . . . . Known Exits Taken 5 | . 1 . 1 1 1 . . 1 . Unknown Exits Taken 2 | 1 . 1 . . . . . . . Scrap Searched 5 | . . 2 . 1 . . . . 2 Spaces Dug 63 | . 12 13 . . 16 11 . 10 1 Terrain Destroyed 227 | . 12 69 . . 73 11 . 15 47 Melee 29 | . . . . . 7 11 . 10 1 Projectile 13 | . 12 1 . . . . . . . AOE 185 | . . 68 . . 66 . . 5 46 Terrain Rammed . | . . . . . . . . . . Walls Destroyed . | . . . . . . . . . . Machines Disabled . | . . . . . . . . . . Actions | -11 -10 -10 -10 -9 -8 -7 -7 -7 -7 --------- Run | Yrd Mat Min Exi Min Mat Fac Was Fac Low Total 4312 | 76 296 758 434 429 785 345 375 575 239 Wait 207 | . 10 . 1 10 102 30 1 43 10 Move 3730 | 54 239 713 428 409 594 293 334 459 207 Hop . | . . . . . . . . . . Pick Up 53 | 6 4 5 2 4 15 1 9 4 3 Fast Attach 28 | 7 2 2 1 . 6 . 6 3 1 Attach 26 | . . 7 . . 10 1 2 1 5 Detach 7 | . . 3 1 . 2 . 1 . . Swap 33 | . 6 3 1 . 6 . 6 7 4 Drop 38 | . 3 . . 3 12 . 14 6 . Fire 108 | 9 31 22 . . 24 4 . 10 8 Melee 74 | . . . . . 14 16 1 42 1 Ram 1 | . 1 . . . . . . . . Kick 6 | . . 3 . 3 . . . . . Crush . | . . . . . . . . . . Escape Stasis . | . . . . . . . . . . Rewire 1 | . . . . . . . 1 . . Trap . | . . . . . . . . . . Miscellaneous . | . . . . . . . . . . Route ------- -11/Scrapyard -10/Materials (discovered 2 exits: [*Mat] / *Min) -10/Mines (discovered 4 exits: [*Mat x2] / *Exi / [*Sub]) -10/Exiles -9/Mines -8/Materials -7/Factory -7/Waste -7/Factory -7/Lower Caves History --------- Turn | Location | Event 14 | -11/Scrapyard | Discovered new exit (range 15) 88 | -11/Scrapyard | Entered Materials 290 | -10/Materials | Identified exit to Mines 300 | -10/Materials | Discovered new exit (range 8) 332 | -10/Materials | Build established: Mutant 335 | -10/Materials | System corruption reached 10% 420 | -10/Materials | Central database locked down 563 | -10/Materials | Crushed by falling debris 593 | -10/Materials | Entered Mines 804 | -10/Mines | Discovered new exit (range 7) 904 | -10/Mines | Discovered new exit (range 5) 932 | -10/Mines | Lost 6 parts (1p2n3w) 970 | -10/Mines | Found the Drone Emporium 980 | -10/Mines | Found Prototype Device 1108 | -10/Mines | Received a Rocket Launcher from a helpful Derelict 1618 | -10/Mines | Discovered new exit (range 11) 1821 | -10/Mines | Deemed a non-threat by the Exiles lab entrance 1823 | -10/Mines | Discovered new exit (range 5) 2025 | -10/Mines | Entered Exiles 2054 | -10/Exiles | Discovered new exit (range 15) 2075 | -10/Exiles | Met 8R-AWN 2107 | -10/Exiles | Met EX-HEX 2168 | -10/Exiles | Met EX-BIN 2195 | -10/Exiles | Aligned with FarCom system 2196 | -10/Exiles | Given EX-Vault access code 2244 | -10/Exiles | Opened EX-Vault 2265 | -10/Exiles | Found Latent Energy Streamer 2306 | -10/Exiles | Warned to stay clear of 0b10 Research branches 2369 | -10/Exiles | Met EX-DEC 2440 | -10/Exiles | Visited The Gauntlet 2786 | -10/Exiles | Identified exit to Mines 2845 | -10/Exiles | Left Exiles lab with Latent Energy Streamer 2845 | -10/Exiles | Entered Mines 2866 | -9/Mines | Learned location of Recycling (-7) 3072 | -9/Mines | Learned location of Zion (-7) 3186 | -9/Mines | Found a damaged Exp. Sensor Array with a note attached 3193 | -9/Mines | Found Prototype Device 3621 | -9/Mines | Discovered new exit (range 12) 3642 | -9/Mines | Identified exit to Materials 3644 | -9/Mines | Entered Materials 3644 | -8/Materials | Evolved 4 slots: Propulsion x2, Utility x2 3646 | -8/Materials | Identified Exp. Sensor Array 3647 | -8/Materials | Identified Sensor Drone Bay 4065 | -8/Materials | Destroyed 7 combat bots 4068 | -8/Materials | Lost 4 parts (1p1n2w) 4480 | -8/Materials | Build established: Assassin 4671 | -8/Materials | Discovered new exit (range 8) 4684 | -8/Materials | Identified exit to Factory 4789 | -8/Materials | Entered Factory 4789 | -7/Factory | Evolved 2 slots: Propulsion x1, Utility x1 5341 | -7/Factory | Sucked down chute 5341 | -7/Factory | Entered Waste 5341 | -7/Waste | The area was eerily silent 5715 | -7/Waste | Discovered new exit (range 12) 5754 | -7/Waste | Identified exit to Factory 5766 | -7/Waste | Found Damper Plating 5917 | -7/Waste | Entered Factory 6638 | -7/Factory | Discovered new exit (range 11) 6791 | -7/Factory | Crushed by falling debris 6791 | -7/Factory | System corruption reached 10% 6822 | -7/Factory | Lost 3 parts (2n1u) 6859 | -7/Factory | Identified exit to Lower Caves 6864 | -7/Factory | Entered Lower Caves 7062 | -7/Lower Caves | Spotted B-75 Beast 7088 | -7/Lower Caves | Build established: Mutant 7368 | -7/Lower Caves | Lost 4 parts (1p1n1u1w) 7411 | -7/Lower Caves | Core integrity fell below 50% 7456 | -7/Lower Caves | Core integrity fell below 20% 7482 | -7/Lower Caves | Destroyed by B-75 Beast with Heavy Machine Gun Last Messages --------------- 07337_ Imp. Propulsion Shielding destroyed. 07347_ System corrupted: IFF burst signal emitted. 07357_ Acquired 5 matter. 07369_ System corrupted: Antimatter Reactor rejected. 07386_ System corrupted: Heat flow error (+211). 07390_ Med. Treads destroyed. 07394_ Antimatter Reactor destroyed. 07397_ Latent Energy Streamer blasted off. 07404_ Knocked back. 07411_ System corrupted: Energy discharge (-38). 07426_ Hacking Suite destroyed. 07426_ Critical hit (Meltdown: +310). 07431_ Mak. Light Armor Plating destroyed. 07448_ Knocked back. 07465_ Acquired Latent Energy Streamer. 07466_ System corrupted: Substantial component data lost. 07471_ B-75 Beast misfires. 07476_ Latent Energy Streamer destroyed. 07476_ Mic. Nuclear Core destroyed. 07481_ System corrupted: Component data lost. Map ----- +----------------------------------------------------+ | ?????????????????????????????????????????????????? | | ?????????????????????????????????????????????????? | | ?????????????????????????????????????????????????? | | ?????????????????????????????????????????????????? | | ?????????????????????????????????????????????????? | | ?????????????????????????????????????????????????? | | ?????????????????????????????????????????????????? | | ?????????????????????????????????????????????????? | | ?????????????????????????????????????????????????? | | ?????????????????????????????????????????????????? | | ?????????????????????????????????????????????????? | | ?????????????????????????????????????????????????? | | ?????????????????????????????????????????????????? | | ?????????????????????????????????????????????????? | | ?????????????????????????????????????????????????? | | ?????????????????????????????????????????????????? | | ?????????????????????????????????????????????????? | | ?????????????????????????????????????????????????? | | ?????????????????????????????????????????????????? | | ???????????????????????????##????????????????????? | | ????????????????????????### ###??????????????????? | | ????????????????????????# # #??????????????????? | | ????????????????????????# ;;;;#?????????????????## | | ???????????????????????##%%% ;##????????????##### | | ???????????????????????# * ;#???????????## | | ???????????????????????# @ #"#???????#### | | ???????????????????????## #??????### | | ???????????????????????# #??????# # | | ???????????????????????# ; #??##### ####"" | | ???????????????## ?? ;; #?## ## ###" " | | ???????????????# ;; ### % ### "" " | | ???????????????# ;; ;# ### """"" | | ???????????????# BB % % """""" | | ???????????????# BB """""" | | ???????????????# ## ### """ " | | ???????????????# ;;### #?# """ | | ???????????????##### ####?## ### """""" | | ??????????????????##### #####?????# ""### | | ??????????????????????##??????????# #### "#### | | ???????????????????????????????#### #### | | ?????????????????????????####### ## | | ?????????????????????????# # | | ?????????????????????????# """ # | | ?????????????????????????# """""" ### | | ?????????????????????????# """ """ ###?# | | ?????????????????????????# """ #???## | | ?????????????????????????# """ """ ##??### ### | | ?????????????????????????# """""" #???# # ### | | ?????????????????????????# """ ###??# ### | | ?????????????????????##### ######## #??## ## | +----------------------------------------------------+ Best States ------------- Heat Dissipation 34 Energy Generation 21 Energy Capacity 325 Matter Stores 300 Matter Capacity 300 Sight Range 20 Terrain Scan Range 16 Terrain Scan Density 10 ECM Strength 1 Armor Coverage 100 Propulsion Shielding 66 Evasion (%) 55 Recoil Reduction 5 Offensive Hacking 10 Item Schematics ----------------- None Robot Schematics ------------------ None Fabricated ------------ Nothing Repaired ---------- Nothing Alien Tech Used ----------------- None Achievements -------------- None Challenges ------------ None Game ------ Seed AerolevFieldClaymores Manual? 0 Play Time 01:10:13 Cumulative 61.0 hours Start 2025.09.22 @ 14:50:41 End 2025.09.23 @ 04:28:38 Sessions 3 Manual Loads 0 Difficulty Rogue Special Mode None Game No. 67 Rogue 67 Adventurer 0 Explorer 0 Win Type - Total 0 Types 0/0/0/0/0/0/0/0/0/0 Lore% 18 Gallery% 31 Achievement% 27 Wizard Run 0 Options --------- Layout 1 ASCII 0 Keyboard 0 Movement Numpad Keybinds 0 Fullscreen 1 Font 32/SmallcapsGlow Map View 77x35 Zoom Use 0% Tactical HUD 1 Map Filters NONE Filters NONE Steam 1 RUN: be872d1d-45e7-4b62-80e2-adb9f4a8c20c